Cogmind - Beta 13 @@@ ROGUE MODE // 2024.04.18 @ 18:53:10 Player: N00Bk1llr Result: Destroyed by FE-SAT(R) with Subdweller Machine Gun Performance ------------- Evolutions (0) 0 Regions Visited (2) 400 Robots Destroyed (24) 120 Value Destroyed (699) 699 Prototype IDs (0) 0 Alien Tech Used (0) 0 Bonus (0) 0 TOTAL SCORE: 1219 Bonus ------- None Cogmind --------- Core Integrity 0/250 Matter 239/300 Energy 200/200 System Corruption 2% Temperature Cool (0) Movement Treading (260) Ox1 Location -10/Subcaves Parts ------- > --- POWER (1) -------- Subdweller Power Source > --- PROPULSION (2) --- Spiked Treads > --- UTILITY (2) ------ Large Storage Unit Improved Targeting Computer > --- WEAPON (2) ------- Rocket Launcher Subdweller Shrapnel Launcher > --- INVENTORY (15) --- Ion Engine Subdweller Power Source Subdweller Optics Subdweller Laser Beam Cannon Subdweller Beam Cannon Assault Rifle Battle Rifle Subdweller Machine Gun Battle Cannon Rocket Launcher Rocket Launcher Flamer Hammer Ripper Peak State ------------ > --- POWER ------------ Subdweller Power Source > --- PROPULSION ------- Spiked Treads Subdweller Monowheel > --- UTILITY ---------- Large Storage Unit Improved Targeting Computer > --- WEAPON ----------- Subdweller Laser Battle Rifle > --- INVENTORY -------- Ion Engine Subdweller Power Source Subdweller Optics Beam Cannon Subdweller Beam Cannon Assault Rifle Subdweller Machine Gun Battle Cannon Rocket Launcher Rocket Launcher Rocket Launcher Rocket Launcher Flamer Hammer Ripper [Rating: 15] Favorites ----------- Power Light Ion Engine Engine Light Ion Engine Propulsion Light Treads Treads Light Treads Wheel Subdweller Monowheel Utility Large Storage Unit Storage Large Storage Unit Processor Improved Targeting Computer Weapon Assault Rifle Energy Gun Subdweller Laser Energy Cannon Subdweller Beam Cannon Ballistic Gun Assault Rifle Launcher Rocket Launcher Build | -11 -10 -10 ------- Run | Yrd Mat Sub Slots Evolved . | . . . Power . | . . . Propulsion . | . . . Utility . | . . . Weapon . | . . . Parts Attached 28 | 7 9 12 Power 3 | 1 . 2 Engine 3 | 1 . 2 Core . | . . . Reactor . | . . . Propulsion 4 | 2 . 2 Treads 3 | 2 . 1 Leg . | . . . Wheel 1 | . . 1 Hover . | . . . Flight . | . . . Utility 5 | 1 3 1 Device . | . . . Storage 2 | 1 1 . Processor 3 | . 2 1 Hackware . | . . . Protection . | . . . Artifact . | . . . Weapon 16 | 3 6 7 Energy Gun 2 | 1 . 1 Energy Cannon 2 | . 1 1 Ballistic Gun 9 | 2 4 3 Ballistic Cannon . | . . . Launcher 3 | . 1 2 Special Weapon . | . . . Impact Weapon . | . . . Slashing Weapon . | . . . Piercing Weapon . | . . . Special Melee Weapon . | . . . Unidentified Prototypes . | . . . Parts Lost 3 | . . 3 Power 2 | . . 2 Propulsion 1 | . . 1 Utility . | . . . Weapon . | . . . Highest Loss Streak 1 | . . 1 To Critical Strikes . | . . . Average Slot Usage (%) 94 | . 95 94 Engine 13 | . 14 13 Treads 22 | . 28 18 Wheel 2 | . . 3 Storage 15 | . 16 14 Processor 11 | . 6 14 Energy Gun 3 | . . 5 Energy Cannon 5 | . 4 5 Ballistic Gun 16 | . 23 11 Launcher 2 | . . 4 Naked Turns . | . . . Heaviest Build 37 | 12 32 37 Greatest Support 40 | 40 40 40 Greatest Overweight (x) 1 | . . 1 Average Overweight (x) . | . . . Largest Inventory Capacity 15 | 8 15 15 Average Capacity 14 | 6 14 15 Most Carried 15 | 2 15 15 Average Carried 12 | 1 10 14 Final Capacity 15 | 8 15 15 Final Carried 15 | 2 15 15 Class Distribution -------------------- 100% | Mutant Dominant Class ---------------- Mutant | -10/Materials Mutant | -10/Subcaves Resources | -11 -10 -10 ----------- Run | Yrd Mat Sub Matter Collected 843 | 170 367 306 Remotely . | . . . Salvage Created 807 | . 449 358 Parts 59 | . 37 22 Haulers Intercepted . | . . . Recyclers Shooed 1 | . 1 . Parts Field Recycled . | . . . Retrieved Matter . | . . . Parts Self-Destructed 6 | . . 6 Prevented . | . . . Kills | -11 -10 -10 ------- Run | Yrd Mat Sub Combat Hostiles Destroyed 19 | . 10 9 Guns 12 | . 8 4 Cannons 5 | . 2 3 AOE 1 | . . 1 Classes Destroyed 5 | . 4 1 Worker 3 | . 3 . Watcher 2 | . 2 . Swarmer 3 | . 3 . Grunt 7 | . 7 . Subdweller 9 | . . 9 Best Kill Streak 5 | . 5 3 Combat Bots Only 5 | . 5 3 Max Kills in Single Turn 2 | . 2 2 Gunslinging 1 | . . 1 Exploded 1 | . . 1 Melee . | . . . Uniques/NPCs Destroyed . | . . . Combat | -11 -10 -10 -------- Run | Yrd Mat Sub Hostile Shots Fired 85 | . 52 33 Missed 24 | . 14 10 Damage Taken 1060 | . 411 649 Core 254 | . 92 162 Absorbed by Shields . | . . . Core Remaining (%) 100 | 100 . . Volleys Fired 86 | . 50 36 Largest 2 | . 2 2 Hottest 110 | . 93 110 Shots Fired 170 | . 100 70 Gun 132 | . 83 49 Cannon 35 | . 16 19 Launcher 3 | . 1 2 Special . | . . . Kinetic 118 | . 83 35 Thermal 50 | . 16 34 Explosive 2 | . 1 1 Electromagnetic . | . . . Robot Hit Streak 14 | . 9 14 Robot Miss Streak 4 | . 4 1 Penetration Max . | . . . Secondary Targets 2 | . 1 1 Max Gunslinging Chain 1 | . 1 1 Shots Hit Robots 101 | . 56 45 Core Hits 38 | . 23 15 Critical Kills 2 | . 1 1 Critical Parts Destroyed . | . . . Critical Strikes 2 | . 1 1 Meltdown 1 | . . 1 Destroy 1 | . 1 . Melee Attacks . | . . . Impact . | . . . Slashing . | . . . Piercing . | . . . Sneak Attacks . | . . . Combat Hostiles . | . . . Follow-up Attacks . | . . . Damage Inflicted 1531 | . 621 910 Guns 1053 | . 585 468 Cannons 365 | . 36 329 Explosions 113 | . . 113 Melee . | . . . Ramming . | . . . Kinetic 863 | . 585 278 Thermal 588 | . 36 552 Explosive 80 | . . 80 Electromagnetic . | . . . Impact . | . . . Slashing . | . . . Piercing . | . . . Highest Corruption 2 | . 2 2 Average Corruption 2 | . 2 2 Corruption Purged . | . . . Corruption Blocked . | . . . Effects 25 | . 7 18 Message Errors 2 | . 1 1 Matter Fused 9 | . 2 7 Heat Flow Errors 8 | . 1 7 Energy Discharges 1 | . . 1 Parts Rejected 1 | . 1 . Data Loss (minor) 1 | . . 1 Misfires 1 | . 1 . Alerts 1 | . 1 . Weapon Failures 1 | . . 1 Overload Shots . | . . . Overflow Damage . | . . . Projectiles . | . . . Explosions . | . . . Melee . | . . . Knockbacks . | . . . Impact . | . . . Kinetic . | . . . Secondary . | . . . Self-Inflicted Damage 28 | . 28 . Shots 1 | . 1 . Rammed . | . . . Targets Rammed . | . . . Kicked . | . . . Crushed . | . . . Highest Temperature 234 | . 195 234 Average Temperature 76 | . 67 90 Received Heat Transfer 156 | . 126 30 Siege Activations . | . . . Robots Corrupted . | . . . Combat Hostiles . | . . . Parts Fried . | . . . Impact Corruptions . | . . . Robots Melted 1 | . . 1 Combat Hostiles 1 | . . 1 Parts Melted 3 | . . 3 Heat Transferred 793 | . 74 719 Parts Sabotaged . | . . . Parts Stolen . | . . . Parts Stripped . | . . . Power Chain Reactions . | . . . Alert | -11 -10 -10 ------- Run | Yrd Mat Sub Peak Influence 279 | . 279 . Initial . | . . . Average 110 | . 119 . Maximum Alert Level 1 | . 1 . Low Security (%) 88 | 100 87 . Level 1 11 | . 12 . Level 2 . | . . . Level 3 . | . . . Level 4 . | . . . Level 5 . | . . . High Security . | . . . Max Security . | . . . Squads Dispatched 1 | . 1 . Investigation . | . . . Extermination . | . . . Reinforcement 1 | . 1 . Assault . | . . . Garrison . | . . . Intercept . | . . . Searches Triggered . | . . . Construction Impeded . | . . . Haulers Reinforced . | . . . Active Scanning Responses . | . . . Cargo Convoy Interrupts . | . . . Stealth | -11 -10 -10 --------- Run | Yrd Mat Sub Distress Signals . | . . . Communications Jammed . | . . . Distress Signals . | . . . Times Spotted 23 | . 13 10 Peak Tracking Total 3 | . 3 2 Tactical Retreats . | . . . Traps | -11 -10 -10 ------- Run | Yrd Mat Sub Traps Triggered 2 | . 1 1 Indirectly . | . . . Trap Hack Attempts . | . . . Triggered . | . . . Disarmed . | . . . Reprogrammed . | . . . Reused . | . . . Traps Extracted . | . . . Installed . | . . . Triggered 1 | . . 1 Machines | -11 -10 -10 ---------- Run | Yrd Mat Sub Machines Disabled 1 | . 1 . Max in Single Turn 1 | . 1 . Machines Repaired . | . . . Machines Dismantled . | . . . Machines Sabotaged . | . . . Overloaded Fab Kills . | . . . Hacking | -11 -10 -10 --------- Run | Yrd Mat Sub Machines Accessed 3 | . 3 . Terminals 3 | . 3 . Fabricators . | . . . Repair Stations . | . . . Recycling Units . | . . . Scanalyzers . | . . . Garrison Access . | . . . Total Hacks 7 | . 7 . Successful 3 | . 3 . Failed 4 | . 4 . Catastrophic . | . . . Database Lockouts . | . . . Manual 3 | . 3 . Terminals 7 | . 7 . Fabricators . | . . . Repair Stations . | . . . Recycling Units . | . . . Scanalyzers . | . . . Garrison Access . | . . . Terminal Hacks 3 | . 3 . Locate Traps 1 | . 1 . Hauler Manifests 1 | . 1 . Zone Layout 1 | . 1 . Fabricator Hacks . | . . . Repair Station Hacks . | . . . Recycling Unit Hacks . | . . . Scanalyzer . | . . . Garrison Access Hacks . | . . . Unauthorized Hacks . | . . . Terminals . | . . . Fabricators . | . . . Repair Stations . | . . . Recycling Units . | . . . Scanalyzers . | . . . Garrison Access . | . . . Data Cores Recovered . | . . . Used . | . . . Hacking Detections 3 | . 3 . Full Trace Events . | . . . Feedback Events . | . . . Feedback Blocked . | . . . Robot Schematics Acquired . | . . . Robots Built . | . . . Authchips . | . . . Time . | . . . Total Robot Build Rating . | . . . Part Schematics Acquired . | . . . Parts Built . | . . . Authchips . | . . . Time . | . . . Total Part Build Rating . | . . . Parts Repaired . | . . . Time . | . . . Parts Recycled . | . . . Recycled Matter . | . . . Retrieved Matter . | . . . Retrieved Components . | . . . Parts Scanalyzed . | . . . Part Schematics Acquired . | . . . Parts Damaged . | . . . Bothacking | -11 -10 -10 ------------ Run | Yrd Mat Sub Used RIF Installer . | . . . Robots Hacked . | . . . Non-combat . | . . . Combat . | . . . Robot Hacks Applied . | . . . Relay Couplers Released . | . . . Fabnet Peak Effective % . | . . . Robots Rewired . | . . . Allies Hacked . | . . . Hacks Repelled . | . . . Allies | -11 -10 -10 -------- Run | Yrd Mat Sub Total Allies . | . . . Largest Group . | . . . Highest-Rated Group . | . . . Highest-Rated Ally . | . . . Total Orders . | . . . Ally Attacks . | . . . Total Damage . | . . . Kills . | . . . Allies Corrupted . | . . . Allies Melted . | . . . Intel | -11 -10 -10 ------- Run | Yrd Mat Sub Robot Analysis Total . | . . . Derelict Logs Recovered 3 | . . 3 Drone Launches . | . . . Drone Recoveries . | . . . Exploration | -11 -10 -10 ------------- Run | Yrd Mat Sub Turns Passed 2183 | 68 812 1303 Spaces Moved 1115 | 39 396 680 Core 5 | 5 . . Treads 837 | 34 396 407 Legs . | . . . Wheels 273 | . . 273 Hover . | . . . Flight . | . . . Fastest Speed 50 | 50 160 120 Average Speed 165 | 145 160 169 Slowest Speed 260 | 160 160 260 Overloaded Moves . | . . . Propulsion Burnouts . | . . . Robots Hopped . | . . . Cave-ins Triggered . | . . . Exploration Rate (%) 35 | 4 62 39 Regions Visited 2 Branch Regions 1 Pre-discovered Areas 1 | . . 1 Known Exits Taken 1 | . 1 . Unknown Exits Taken 1 | 1 . . Scrap Searched 9 | . . 9 Spaces Dug 8 | . 8 . Terrain Destroyed 21 | . 8 13 Melee . | . . . Projectile 2 | . . 2 AOE 19 | . 8 11 Terrain Rammed . | . . . Walls Destroyed . | . . . Machines Disabled . | . . . Actions | -11 -10 -10 --------- Run | Yrd Mat Sub Total 1282 | 47 474 761 Wait 12 | . 1 11 Move 1113 | 38 395 680 Hop . | . . . Pick Up 26 | 2 15 9 Fast Attach 12 | 6 3 3 Attach 2 | . . 2 Detach . | . . . Swap 14 | 1 6 7 Drop 17 | . 4 13 Fire 86 | . 50 36 Melee . | . . . Ram . | . . . Kick . | . . . Crush . | . . . Escape Stasis . | . . . Rewire . | . . . Trap . | . . . Miscellaneous . | . . . Route ------- -11/Scrapyard -10/Materials (discovered 4 exits: *Mat x2 / [*Min] / *Sub) -10/Subcaves (discovered 1 exit: [*Mat]) History --------- Turn | Location | Event 21 | -11/Scrapyard | Discovered new exit (range 16) 69 | -11/Scrapyard | Entered Materials 284 | -10/Materials | Discovered new exit (range 16) 312 | -10/Materials | Build established: Mutant 386 | -10/Materials | Discovered new exit (range 7) 613 | -10/Materials | Discovered new exit (range 11) 694 | -10/Materials | Identified exit to Materials 875 | -10/Materials | Discovered new exit (range 5) 880 | -10/Materials | Identified exit to Subcaves 881 | -10/Materials | Entered Subcaves 1125 | -10/Subcaves | Shifting Twisted Machinery released Battle Cannon 1137 | -10/Subcaves | Shifting Twisted Machinery released Sub. Machine Gun 1233 | -10/Subcaves | Core integrity fell below 50% 1381 | -10/Subcaves | Discovered new exit (range 8) 1705 | -10/Subcaves | Disturbed a concealed Subdweller 1856 | -10/Subcaves | Learned 8 Materials zone layouts 1878 | -10/Subcaves | A swath of the cavern ceiling suddenly collapsed 1919 | -10/Subcaves | Core integrity fell below 20% 2137 | -10/Subcaves | Learned 4 Materials zone layouts 2184 | -10/Subcaves | Destroyed by FE-SAT(R) with Subdweller Machine Gun Last Messages --------------- 01885_ 7X-RQ5(R) destroyed. 01889_ Acquired Sub. Power Source. 01890_ Acquired 17 matter. 01926_ M8-UK7(R) destroyed. 01926_ Switching to secondary target: DP-2EE(R). 01926_ DP-2EE(R) destroyed. 01936_ Acquired 15 matter. 01955_ Dropped Rocket Launcher. 01959_ Acquired Sub. Shrapnel Launcher. 02065_ System corrupted: Heat flow error (+130). 02089_ GE-20B(u) deconstructs Twisted Machinery. 02095_ GE-20B(u) deconstructs Twisted Machinery. 02101_ Sub. Monowheel shoots sparks and powers down. 02102_ Dropped Broken Sub. Monowheel. 02131_ System corrupted: Matter fused (-10). 02137_ Acquired derelict log, extracted data. Data stored: Materials zone layouts (x4). 02178_ 90-N52(R) destroyed. Map ----- +----------------------------------------------------+ | | | | | | | | | | | ????????????????????????????????????????????????? | | ????????????????????????????????????????????????? | | ????????????????????????????????????????????????? | | ????????????????????????????????????????????????? | | ????????????????????????????????????????????????? | | ????????????????????????????????????????????????? | | ????????????????????????????????????????????????? | | ????????????????????????????????????????????????? | | ????????????????????????????????????????????????? | | ????????????????????????????????????????????????? | | ????????????????????????????????????????????????? | | ????????????????????????????????????????????????? | | ????????????????????????????????????????????????? | | ????????????????????????????????????????????????? | | ????????????????????????????????????#???????????? | | ????????????????????#######????### ;##??????????? | | ???????????????????## ##?? ?????????? | | ???????????????????# ### ?????????? | | ???????????????????# [ ????????? | | ??????????????????## R % ?????????? | | ??????????????????# @ #????????????????? | | ??????????????????# ## #????????????????? | | ????????????????##????# #####????????????????? | | ???????????????## ##?## ##???????????????????? | | ???????????????# ### ##??????????????????? | | ???????????????# ####???????????????? | | ???????????????# #???????????????? | | ???????????????# #??????????????? | | ???????????????# ## #?????????????? | | ???????????????# ## ## #????????????? | | ???????????????# ###?# ##????????????? | | ???????????????# #?????#?????????????? | | ???????????????## # #????????????????? | | ???????????????## #### #???????????????? | | ???????????????# #?### ??????????????? | | ???????????????## ## ## ??????????????? | | ??????????????### # ## ###??????????????? | | ??????????????# ####????????????????? | | ??????????????# #??????????????????? | | ??????????????# ##??????????????????? | | ??????????????## ### ##???????????????????? | | ???????????????# #?? ##????????????????????? | | ??????????????## #?? #?????????????????????? | | ??????????????# #??? #????????????????????? | | ??????????????# #??? ???????????????????? | +----------------------------------------------------+ Best States ------------- Heat Dissipation 25 Energy Generation 15 Energy Capacity 200 Matter Stores 300 Matter Capacity 300 Sight Range 16 Terrain Scan Density 10 Evasion (%) 40 Targeting Accuracy 6 Recoil Reduction 2 Item Schematics ----------------- None Robot Schematics ------------------ None Fabricated ------------ Nothing Alien Tech Used ----------------- None Achievements -------------- None Challenges ------------ None Game ------ Seed AbsorptionSpliceSuite Manual? 0 Play Time 00:14:04 Cumulative 46.7 hours Start 2024.04.18 @ 18:38:14 End 2024.04.18 @ 18:53:10 Sessions 1 Manual Loads 0 Difficulty Rogue Special Mode None Game No. 83 Rogue 61 Adventurer 22 Explorer 0 Win Type - Total 1 Types 1/0/0/0/0/0/0/0/0 Lore% 30 Gallery% 47 Achievement% 42 Wizard Run 0 Options --------- Layout 2 ASCII 0 Keyboard 0 Movement Mouse Keybinds 0 Fullscreen 2 Font 24/Smallcaps Map View 50x44 Zoom Use 0% Tactical HUD 1 Map Filters NONE Filters NONE Steam 1 RUN: e1d8d347-a943-454d-98a6-51bb69db8418